fUSD/lending_fUSD_20240629
["ID","MTS","AMOUNT","RATE_DAILY","PERIOD"]
[330643039,1719683438337,-500.0,0.00013888,2]
[330643041,1719683438347,-1604.68,0.00013888,3]
[330643042,1719683438357,-686.95,0.00013888,3]
[330643043,1719683438367,-1192.34,0.00013888,3]
[330643044,1719683438377,-1936.56880856,0.00013888,3]
[330643045,1719683438389,-1607.06119144,0.00013888,3]
[330643046,1719683438400,-94.36748368,0.00013888,3]
[330643047,1719683438412,-333.98286187,0.00013888,3]
[330643058,1719683438559,-500.0,0.00013887,3]
[330643060,1719683438571,-116.45965445,0.00013888,3]
[330643063,1719683438580,-1483.97,0.00013888,3]
[330643065,1719683438590,-3749.98,0.00013888,3]
[330643066,1719683438599,-4625.22,0.00013888,3]
[330643069,1719683438609,-1115.79950423,0.00013888,3]
[330643071,1719683438621,-41.64049577,0.00013888,3]
[330643073,1719683438631,-2687.83,0.00013888,3]
[330643075,1719683438640,-500.0,0.00013888,3]
[330643077,1719683438650,-1006.01,0.00013888,3]
[330643079,1719683438659,-977.76114863,0.00013888,3]
[330643081,1719683438671,-3936.99885137,0.00013888,3]
[330643083,1719683438682,-675.55,0.00013888,3]
[330643085,1719683438691,-501.04505886,0.00013888,3]
[330643087,1719683438702,-500.0,0.00013888,3]
[330643089,1719683438711,-500.0,0.00013888,3]
[330643091,1719683438721,-1040.65,0.00013888,3]
[330643093,1719683438731,-1605.98,0.00013888,2]
[330643095,1719683438741,-2604.17,0.00013888,3]
[330643097,1719683438752,-299.16608977,0.00013888,3]
[330643100,1719683438764,-892.60404061,0.00013888,3]
[330643102,1719683438776,-264.135,0.00013888,3]
[330643104,1719683438788,-700.81930549,0.00013888,3]
[330643106,1719683438800,-38.82556413,0.00013888,3]
[330643108,1719683438809,-500.0,0.00013888,3]
[330643110,1719683438819,-4946.17443587,0.00013888,3]
[330643112,1719683438831,-358.9537836,0.00013888,3]
[330643115,1719683438845,-50612.96178053,0.00013888,3]
[330643117,1719683438855,-1505.13,0.00013888,3]
[330643119,1719683438865,-2432.56,0.00013888,3]
[330643121,1719683438875,-500.0,0.00013888,3]
[330643123,1719683438884,-2112.36,0.00013888,3]
[330643125,1719683438894,-500.0,0.00013888,3]
[330643127,1719683438904,-6051.66,0.00013888,3]
[330643129,1719683438914,-765.8,0.00013888,3]
[330643131,1719683438925,-9671.49,0.00013888,3]
[330643133,1719683438935,-2311.73,0.00013888,3]
[330643135,1719683438945,-2500.46,0.00013888,3]
[330643137,1719683438955,-500.0,0.00013888,3]
[330643139,1719683438965,-3908.76,0.00013888,3]
[330643141,1719683438975,-1201.37,0.00013888,3]
[330643143,1719683438985,-500.0,0.00013888,3]
[330643145,1719683438996,-1391.98,0.00013888,3]
[330643147,1719683439007,-908.14,0.00013888,3]
[330643149,1719683439017,-1722.12,0.00013888,3]
[330643151,1719683439028,-2942.49,0.00013888,3]
[330643153,1719683439039,-500.0,0.00013888,3]
[330643155,1719683439050,-2561.96,0.00013888,3]
[330643157,1719683439062,-500.0,0.00013888,3]
[330643159,1719683439079,-1196.22,0.00013888,3]
[330643161,1719683439091,-1435.28,0.00013888,3]
[330643163,1719683439102,-2872.64,0.00013888,3]
[330643165,1719683439113,-7605.61,0.00013888,3]
[330643167,1719683439123,-1095.74,0.00013888,3]
[330643169,1719683439133,-4482.2,0.00013888,3]
[330643171,1719683439143,-500.0,0.00013888,3]
[330643173,1719683439153,-3898.32,0.00013888,3]
[330643175,1719683439164,-4027.56,0.00013888,3]
[330643177,1719683439174,-2730.43,0.00013888,3]
[330643179,1719683439184,-582.12,0.00013888,3]
[330643181,1719683439194,-2114.03,0.00013888,3]
[330643183,1719683439206,-2169.61,0.00013888,3]
[330643185,1719683439216,-1933.25,0.00013888,3]
[330643187,1719683439226,-727.72,0.00013888,3]
[330643189,1719683439237,-7809.6,0.00013888,3]
[330643191,1719683439248,-6152.22,0.00013888,3]
[330643193,1719683439259,-847.74,0.00013888,3]
[330643195,1719683439269,-702.03,0.00013888,3]
[330643197,1719683439279,-2871.59,0.00013888,3]
[330643199,1719683439290,-497.65182835,0.00013888,3]
[330643201,1719683439300,-2628.18,0.00013888,3]
[330643203,1719683439310,-7253.23,0.00013888,3]
[330643205,1719683439320,-2836.84,0.00013888,3]
[330643207,1719683439332,-500.0,0.00013888,3]
[330643210,1719683439344,-3499.4,0.00013888,3]
[330643212,1719683439354,-1381.6,0.00013888,3]
[330643214,1719683439368,-8486.48,0.00013888,3]
[330643216,1719683439378,-500.0,0.00013889,3]
[330643258,1719683439755,-526.31,0.00013889,3]
[330643265,1719683439799,-501.5,0.00013889,3]
[330643267,1719683439810,-1932.28,0.00013889,3]
[330643269,1719683439822,-500.0,0.00013889,3]
[330643271,1719683439832,-871.31,0.00013889,3]
[330643273,1719683439842,-519.06,0.00013889,3]
[330643275,1719683439852,-744.46,0.00013889,3]
[330643277,1719683439862,-500.0,0.00013889,3]
[330643279,1719683439872,-500.0,0.00013889,3]
[330643281,1719683439882,-537.80009947,0.00013889,3]
[330643282,1719683439892,-500.0,0.00013889,3]
[330643283,1719683439902,-500.0,0.00013889,3]
[330643284,1719683439912,-500.0,0.00013889,3]
[330643285,1719683439922,-500.0,0.00013889,3]
[330643286,1719683439932,-1624.8,0.00013889,3]
[330643287,1719683439942,-1100.16,0.00013889,3]
[330643288,1719683439952,-500.0,0.00013889,3]
[330643289,1719683439962,-947.38,0.00013889,3]
[330643290,1719683439973,-500.0,0.00013889,3]
[330643292,1719683439982,-514.67,0.00013889,3]
[330643294,1719683439992,-535.75,0.00013889,3]
[330643296,1719683440002,-653.22,0.00013889,3]
[330643298,1719683440012,-515.42,0.00013889,3]
[330643300,1719683440023,-567.38,0.00013889,3]
[330643302,1719683440033,-500.0,0.00013889,3]
[330643304,1719683440044,-717.99,0.00013889,3]
[330643306,1719683440056,-649.37,0.00013889,3]
[330643309,1719683440071,-1669.99,0.00013889,3]
[330643311,1719683440083,-500.0,0.00013889,3]
[330643313,1719683440093,-763.33,0.00013889,3]
[330643314,1719683440103,-500.0,0.00013889,3]
[330643316,1719683440115,-715.96,0.00013889,3]
[330643319,1719683440125,-500.0,0.00013889,3]
[330643321,1719683440135,-1835.77,0.00013889,3]
[330643323,1719683440148,-500.0,0.00013889,3]
[330643324,1719683440158,-500.0,0.00013889,3]
[330643325,1719683440168,-710.8,0.00013889,3]
[330643326,1719683440178,-500.0,0.00013889,3]
[330643327,1719683440189,-1007.03,0.00013889,3]
[330643328,1719683440198,-500.0,0.00013889,3]
[330643329,1719683440208,-500.0,0.00013889,3]
[330643330,1719683440218,-500.0,0.00013889,3]
[330643331,1719683440229,-1575.41,0.00013889,3]
[330643332,1719683440239,-500.0,0.00013889,3]
[330643333,1719683440248,-500.0,0.00013889,3]
[330643334,1719683440258,-500.0,0.00013889,3]
[330643335,1719683440268,-500.0,0.00013889,3]
[330643336,1719683440278,-536.36,0.00013889,3]
[330643337,1719683440288,-716.72,0.00013889,3]
[330643338,1719683440298,-734.11,0.00013889,3]
[330643339,1719683440308,-500.0,0.00013889,3]
[330643340,1719683440317,-511.28,0.00013889,3]
[330643341,1719683440328,-839.03,0.00013889,3]
[330643342,1719683440338,-790.38,0.00013889,3]
[330643343,1719683440348,-1516.21,0.00013889,3]
[330643344,1719683440358,-500.0,0.00013889,3]
[330643345,1719683440368,-500.0,0.00013889,3]
[330643346,1719683440377,-500.0,0.00013889,3]
[330643347,1719683440387,-500.0,0.00013889,3]
[330643348,1719683440396,-500.0,0.00013889,3]
[330643349,1719683440406,-868.01,0.00013889,3]
[330643350,1719683440416,-703.42,0.00013889,3]
[330643351,1719683440425,-500.0,0.00013889,3]
[330643352,1719683440434,-680.22,0.00013889,3]
[330643353,1719683440444,-1458.18,0.00013889,3]
[330643354,1719683440454,-1207.53,0.00013889,3]
[330643355,1719683440463,-500.0,0.00013889,3]
[330643356,1719683440473,-500.0,0.00013889,3]
[330643357,1719683440483,-500.0,0.00013889,3]
[330643358,1719683440492,-1261.66,0.00013889,3]
[330643359,1719683440502,-687.96,0.00013889,3]
[330643360,1719683440511,-500.0,0.00013889,3]
[330643361,1719683440520,-1201.1,0.00013889,3]
[330643362,1719683440530,-509.5,0.00013889,3]
[330643363,1719683440539,-500.0,0.00013889,3]
[330643364,1719683440549,-500.0,0.00013889,3]
[330643365,1719683440559,-500.0,0.00013889,3]
[330643366,1719683440569,-500.0,0.00013889,3]
[330643367,1719683440579,-500.0,0.00013889,3]
[330643368,1719683440589,-500.0,0.00013889,3]
[330643369,1719683440599,-506.66,0.00013889,3]
[330643370,1719683440608,-500.0,0.00013889,3]
[330643371,1719683440618,-500.0,0.00013889,3]
[330643372,1719683440628,-500.0,0.00013889,3]
[330643373,1719683440638,-676.56,0.00013889,3]
[330643374,1719683440648,-500.0,0.00013889,3]
[330643375,1719683440658,-1415.21,0.00013889,3]
[330643376,1719683440667,-565.46,0.00013889,3]
[330643377,1719683440676,-500.0,0.00013889,3]
[330643378,1719683440686,-603.04,0.00013889,3]
[330643379,1719683440697,-1804.44,0.00013889,3]
[330643380,1719683440707,-500.0,0.00013889,3]
[330643381,1719683440716,-1779.17,0.00013889,3]
[330643382,1719683440726,-500.0,0.00013889,3]
[330643383,1719683440736,-500.0,0.00013889,3]
[330643384,1719683440746,-500.0,0.00013889,3]
[330643386,1719683440756,-1240.77,0.00013889,3]
[330643387,1719683440765,-705.55,0.00013889,3]
[330643388,1719683440775,-500.0,0.00013889,3]
[330643389,1719683440784,-1297.86,0.00013889,3]
[330643390,1719683440794,-500.0,0.00013889,3]
[330643391,1719683440804,-502.78076962,0.00013889,3]
[330643392,1719683440813,-500.0,0.00013889,3]
[330643393,1719683440825,-1108.98,0.00013889,3]
[330643394,1719683440834,-1321.06,0.00013889,3]
[330643395,1719683440844,-667.72,0.00013889,3]
[330643396,1719683440853,-781.61,0.00013889,3]
[330643397,1719683440863,-703.72,0.00013889,3]
[330643398,1719683440873,-1095.9,0.00013889,3]
[330643399,1719683440882,-1521.21,0.00013889,3]
[330643400,1719683440892,-500.0,0.00013889,3]
[330643401,1719683440902,-2260.83,0.00013889,3]
[330643402,1719683440912,-1701.15,0.00013889,3]
[330643403,1719683440922,-500.0,0.00013889,3]
[330643404,1719683440932,-500.0,0.00013889,3]
[330643405,1719683440941,-500.0,0.00013889,3]
[330643406,1719683440951,-500.0,0.00013889,3]
[330643407,1719683440960,-500.0,0.00013889,3]
[330643408,1719683440970,-570.67,0.00013889,3]
[330643409,1719683440980,-2294.42,0.00013889,3]
[330643410,1719683440989,-500.0,0.00013889,3]
[330643411,1719683440999,-512.48,0.00013889,3]
[330643412,1719683441009,-504.05,0.00013889,3]
[330643413,1719683441019,-500.0,0.00013889,3]
[330643414,1719683441028,-500.0,0.00013889,3]
[330643415,1719683441038,-2660.69,0.00013889,3]
[330643416,1719683441048,-500.0,0.00013889,3]
[330643417,1719683441059,-500.0,0.00013889,3]
[330643418,1719683441074,-500.0,0.00013889,3]
[330643419,1719683441084,-1486.91,0.00013889,3]
[330643420,1719683441093,-500.0,0.00013889,3]
[330643421,1719683441103,-2037.45,0.00013889,3]
[330643422,1719683441113,-500.0,0.00013889,3]
[330643423,1719683441123,-550.13825038,0.00013889,3]
[330643426,1719683441783,-369.79174962,0.00013889,3]
[330643427,1719683441793,-743.46,0.00013889,3]
[330643428,1719683441802,-500.0,0.00013889,3]
[330643429,1719683441812,-1323.45,0.00013889,3]
[330643430,1719683441821,-500.0,0.00013889,3]
[330643431,1719683441831,-743.64822862,0.00013889,3]
[330643432,1719683442152,-365.01416679,0.00013889,3]
[330643433,1719683442165,-263.62760459,0.00013889,3]
[330643434,1719683442175,-570.14304426,0.00013889,3]
[330643435,1719683442185,-500.0,0.00013889,3]
[330643436,1719683442195,-33.49661427,0.00013889,3]
[330643440,1719683442731,-781.52999998,0.00013889,3]
[330643441,1719683442744,-271.205,0.00013889,3]
[330643442,1719683442756,-632.91838575,0.00013889,3]
[330643443,1719683442766,-474.76421262,0.00013889,3]
[330643444,1719683442976,-25.23578738,0.00013889,3]
[330643445,1719683442986,-500.0,0.00013889,2]
[330643446,1719683442996,-771.59,0.00013889,3]
[330643447,1719683443007,-2290.28,0.00013889,3]
[330643448,1719683443017,-2617.96,0.00013889,3]
[330643449,1719683443027,-1572.77,0.00013889,3]
[330643450,1719683443037,-2043.53,0.00013889,3]
[330643451,1719683443047,-1682.82,0.00013889,3]
[330643452,1719683443058,-3091.42,0.00013889,3]
[330643453,1719683443075,-1817.15,0.00013889,3]
[330643454,1719683443085,-1196.59,0.00013889,3]
[330643455,1719683443094,-500.0,0.00013889,3]
[330643456,1719683443103,-855.12,0.00013889,3]
[330643457,1719683443112,-514.56,0.00013889,3]
[330643458,1719683443123,-968.55,0.00013889,3]
[330643459,1719683443132,-500.0,0.00013889,3]
[330643460,1719683443142,-1242.13,0.00013889,3]
[330643461,1719683443151,-500.0,0.00013889,3]
[330643462,1719683443162,-500.0,0.00013889,3]
[330643465,1719683443172,-1343.13,0.00013889,3]
[330643467,1719683443181,-500.0,0.00013889,3]
[330643469,1719683443191,-556.15,0.00013889,3]
[330643470,1719683443200,-648.65,0.00013889,3]
[330643472,1719683443210,-615.43,0.00013889,3]
[330643474,1719683443219,-500.0,0.00013889,3]
[330643476,1719683443229,-500.0,0.00013889,3]
[330643478,1719683443238,-500.0,0.00013889,3]
[330643479,1719683443251,-589.51,0.00013889,3]
[330643480,1719683443261,-606.39,0.00013889,3]
[330643481,1719683443270,-568.96,0.00013889,3]
[330643482,1719683443280,-500.0,0.00013889,3]
[330643483,1719683443290,-2361.33,0.00013889,3]
[330643484,1719683443300,-518.11,0.00013889,3]
[330643485,1719683443309,-3077.16,0.00013889,3]
[330643486,1719683443319,-1202.28,0.00013889,3]
[330643487,1719683443330,-1272.27,0.00013889,3]
[330643488,1719683443340,-500.0,0.00013889,3]
[330643489,1719683443350,-1452.32,0.00013889,3]
[330643490,1719683443360,-2854.26,0.00013889,3]
[330643491,1719683443369,-519.66,0.00013889,3]
[330643492,1719683443378,-500.0,0.00013889,3]
[330643493,1719683443388,-2271.42,0.00013889,3]
[330643494,1719683443398,-806.45,0.00013889,3]
[330643495,1719683443408,-500.0,0.00013889,3]
[330643496,1719683443417,-500.0,0.00013889,3]
[330643497,1719683443427,-500.0,0.00013889,3]
[330643498,1719683443437,-2456.83,0.00013889,3]
[330643499,1719683443448,-728.44,0.00013889,3]
[330643500,1719683443458,-500.0,0.00013889,3]
[330643501,1719683443469,-500.0,0.00013889,3]
[330643502,1719683443478,-500.0,0.00013889,3]
[330643503,1719683443488,-1820.48,0.00013889,3]
[330643504,1719683443497,-500.0,0.00013889,3]
[330643505,1719683443507,-500.0,0.00013889,2]
[330643506,1719683443516,-500.0,0.00013889,3]
[330643507,1719683443526,-500.0,0.00013889,3]
[330643508,1719683443535,-500.0,0.00013889,3]
[330643509,1719683443544,-638.19,0.00013889,3]
[330643510,1719683443553,-500.0,0.00013889,3]
[330643511,1719683443563,-500.0,0.00013889,3]
[330643512,1719683443573,-790.04,0.00013889,3]
[330643513,1719683443583,-895.08,0.00013889,3]
[330643514,1719683443592,-500.0,0.00013889,3]
[330643515,1719683443602,-809.65,0.00013889,3]
[330643516,1719683443612,-3020.72,0.00013889,3]
[330643517,1719683443621,-1312.7,0.00013889,3]
[330643518,1719683443631,-1430.28,0.00013889,3]
[330643519,1719683443640,-4520.69,0.00013889,3]
[330643520,1719683443650,-500.0,0.00013889,3]
[330643521,1719683443659,-500.0,0.00013889,3]
[330643522,1719683443669,-2429.03,0.00013889,3]
[330643523,1719683443679,-1500.48,0.00013889,3]
[330643524,1719683443690,-500.0,0.00013889,3]
[330643525,1719683443699,-669.75,0.00013889,3]
[330643526,1719683443710,-500.0,0.00013889,3]
[330643527,1719683443721,-500.0,0.00013889,3]
[330643528,1719683443732,-2306.89,0.00013889,3]
[330643529,1719683443743,-586.65,0.00013889,3]
[330643530,1719683443753,-844.27,0.00013889,3]
[330643531,1719683443767,-500.0,0.00013889,3]
[330643532,1719683443777,-500.0,0.00013889,3]
[330643533,1719683443787,-1951.84,0.00013889,3]
[330643534,1719683443797,-500.0,0.00013889,3]
[330643535,1719683443807,-700.59,0.00013889,3]
[330643536,1719683443817,-1482.19,0.00013889,3]
[330643537,1719683443827,-500.0,0.00013889,3]
[330643538,1719683443836,-533.69,0.00013889,3]
[330643539,1719683443846,-2652.12,0.00013889,3]
[330643540,1719683443857,-500.0,0.00013889,3]
[330643541,1719683443867,-1130.1,0.00013889,3]
[330643542,1719683443877,-1674.96,0.00013889,3]
[330643543,1719683443887,-500.0,0.00013889,3]
[330643544,1719683443896,-1030.35,0.00013889,3]
[330643545,1719683443906,-500.0,0.00013889,3]
[330643546,1719683443917,-500.0,0.00013889,3]
[330643547,1719683443927,-909.07,0.00013889,3]
[330643548,1719683443936,-542.14061479,0.00013889,3]
[330643549,1719683443946,-832.08919522,0.00013889,3]
[330643550,1719683443962,-600.0,0.00013889,3]
[330643551,1719683443975,-1007.18080478,0.00013889,3]
[330643552,1719683443985,-554.37,0.00013889,3]
[330643553,1719683443995,-1743.67,0.00013889,3]
[330643554,1719683444004,-57.89631662,0.00013889,3]
[330643555,1719683444017,-881.21664269,0.00013889,3]
[330643556,1719683444082,-453.0,0.00013889,3]
[330643557,1719683444094,-358.515,0.00013889,3]
[330643558,1719683444106,-339.22204069,0.00013889,3]
[330643559,1719683444117,-199.84079072,0.00013889,3]
[330643560,1719683444128,-300.15920928,0.00013889,3]
[330643561,1719683444138,-3447.55,0.00013889,3]
[330643562,1719683444149,-500.0,0.00013889,3]
[330643563,1719683444160,-1173.71,0.00013889,3]
[330643564,1719683444170,-2351.29,0.00013889,3]
[330643565,1719683444179,-999.9,0.00013889,3]
[330643566,1719683444189,-1781.56,0.00013889,3]
[330643567,1719683444199,-500.0,0.00013889,3]
[330643568,1719683444209,-3221.35,0.00013889,3]
[330643569,1719683444218,-2685.34,0.00013889,3]
[330643570,1719683444227,-500.0,0.00013889,3]
[330643571,1719683444237,-500.0,0.00013889,3]
[330643572,1719683444247,-500.0,0.00013889,3]
[330643573,1719683444257,-500.0,0.00013889,3]
[330643574,1719683444268,-1650.73,0.00013889,3]
[330643575,1719683444278,-650.74,0.00013889,3]
[330643576,1719683444287,-785.34,0.00013889,3]
[330643577,1719683444297,-743.15,0.00013889,3]
[330643578,1719683444307,-737.77,0.00013889,3]
[330643579,1719683444317,-1740.17,0.00013889,3]
[330643580,1719683444327,-1712.19,0.00013889,3]
[330643581,1719683444337,-500.0,0.00013889,3]
[330643582,1719683444347,-2173.52,0.00013889,3]
[330643583,1719683444356,-500.0,0.00013889,3]
[330643584,1719683444366,-500.0,0.00013889,3]
[330643585,1719683444376,-3576.07,0.00013889,3]
[330643586,1719683444386,-500.0,0.00013889,3]
[330643587,1719683444396,-500.77637965,0.00013889,3]
[330643588,1719683444405,-533.98,0.00013889,3]
[330643589,1719683444415,-730.68,0.00013889,3]
[330643590,1719683444425,-500.0,0.00013889,3]
[330643591,1719683444434,-1131.22,0.00013889,3]
[330643592,1719683444444,-500.0,0.00013889,3]
[330643593,1719683444462,-500.0,0.00013889,3]
[330643594,1719683444473,-500.0,0.00013889,3]
[330643595,1719683444482,-689.06,0.00013889,3]
[330643596,1719683444492,-1168.21,0.00013889,3]
[330643597,1719683444502,-1890.85,0.00013889,3]
[330643598,1719683444511,-711.54,0.00013889,3]
[330643599,1719683444521,-500.0,0.00013889,3]
[330643600,1719683444531,-2640.11,0.00013889,3]
[330643601,1719683444541,-3074.52,0.00013889,3]
[330643602,1719683444552,-2012.44,0.00013889,3]
[330643603,1719683444562,-2500.0,0.00013889,3]
[330643604,1719683444571,-500.0,0.00013889,3]
[330643605,1719683444581,-1298.41,0.00013889,3]
[330643606,1719683444591,-3566.05,0.00013889,3]
[330643607,1719683444600,-282.99040277,0.00013889,3]
[330643608,1719683444610,-1283.87,0.00013889,3]
[330643609,1719683444620,-500.0,0.00013889,3]
[330643610,1719683444629,-1555.48,0.00013889,3]
[330643611,1719683444639,-500.0,0.00013889,3]
[330643612,1719683444648,-519.45,0.00013889,3]
[330643613,1719683444658,-187.47213007,0.00013889,3]
[330643614,1719683444668,-1068.93,0.00013889,3]
[330643615,1719683444678,-1087.9,0.00013889,3]
[330643616,1719683444687,-500.0,0.00013889,3]
[330643617,1719683444697,-1652.4,0.00013889,3]
[330643618,1719683444707,-545.65,0.00013889,3]
[330643619,1719683444716,-1453.09,0.00013889,3]
[330643620,1719683444726,-500.0,0.00013889,3]
[330643621,1719683444736,-727.42,0.00013889,3]
[330643622,1719683444748,-500.0,0.00013889,3]
[330643623,1719683444758,-893.94,0.00013889,3]
[330643624,1719683444770,-1988.9,0.00013889,3]
[330643625,1719683444781,-1564.19,0.00013889,3]
[330643626,1719683444791,-591.64,0.00013889,3]
[330643627,1719683444801,-1545.28,0.00013889,3]
[330643628,1719683444810,-837.59,0.00013889,3]
[330643629,1719683444820,-1162.03,0.00013889,3]
[330643630,1719683444832,-500.0,0.00013889,3]
[330643631,1719683444841,-500.0,0.00013889,3]
[330643632,1719683444850,-500.0,0.00013889,3]
[330643633,1719683444859,-1750.22,0.00013889,3]
[330643634,1719683444869,-1066.57,0.00013889,3]
[330643635,1719683444878,-500.0,0.00013889,3]
[330643636,1719683444888,-512.4,0.00013889,3]
[330643637,1719683444898,-1768.28,0.00013889,3]
[330643638,1719683444908,-2298.76,0.00013889,3]
[330643639,1719683444918,-1757.68,0.00013889,3]
[330643640,1719683444927,-500.0,0.00013889,2]
[330643641,1719683444937,-500.0,0.00013889,2]
[330643642,1719683444947,-1179.45,0.00013889,3]
[330643643,1719683444956,-500.0,0.00013889,3]
[330643644,1719683444967,-500.0,0.00013889,3]
[330643645,1719683444979,-2073.21,0.00013889,3]
[330643646,1719683444988,-874.43,0.00013889,3]
[330643647,1719683444998,-500.0,0.00013889,3]
[330643648,1719683445008,-503.23,0.00013889,3]
[330643649,1719683445018,-729.17,0.00013889,3]
[330643650,1719683445028,-254.66,0.00013889,3]
[330643651,1719683445039,-500.0,0.00013889,3]
[330643652,1719683445049,-500.0,0.00013889,3]
[330643653,1719683445060,-500.0,0.00013889,3]
[330643654,1719683445076,-749.09,0.00013889,3]
[330643655,1719683445087,-500.0,0.00013889,3]
[330643656,1719683445097,-500.0,0.00013889,3]
[330643657,1719683445107,-2617.93,0.00013889,3]
[330643658,1719683445116,-1289.39,0.00013889,3]
[330643659,1719683445126,-500.0,0.00013889,3]
[330643660,1719683445135,-500.0,0.00013889,3]
[330643661,1719683445145,-512.11,0.00013889,3]
[330643662,1719683445155,-500.0,0.00013889,3]
[330643663,1719683445166,-887.8,0.00013889,3]
[330643664,1719683445176,-1686.34,0.00013889,3]
[330643665,1719683445185,-500.0,0.00013889,3]
[330643666,1719683445195,-500.0,0.00013889,3]
[330643667,1719683445207,-2260.09,0.00013889,3]
[330643668,1719683445217,-500.0,0.00013889,3]
[330643669,1719683445227,-500.0,0.00013889,3]
[330643670,1719683445237,-1156.26,0.00013889,3]
[330643671,1719683445248,-500.0,0.00013889,3]
[330643672,1719683445258,-500.0,0.0001389,3]
[330643673,1719683445268,-1918.68,0.0001389,3]
[330643674,1719683445278,-500.0,0.0001389,3]
[330643675,1719683445288,-823.45,0.0001389,3]
[330643676,1719683445297,-500.0,0.0001389,3]
[330643677,1719683445308,-1161.6,0.0001389,3]
[330643678,1719683445318,-588.42,0.0001389,3]
[330643679,1719683445329,-500.0,0.0001389,3]
[330643680,1719683445338,-500.0,0.0001389,3]
[330643681,1719683445347,-720.07,0.0001389,3]
[330643682,1719683445357,-905.78,0.0001389,3]
[330643683,1719683445367,-500.0,0.0001389,3]
[330643684,1719683445377,-500.0,0.0001389,3]
[330643685,1719683445386,-500.0,0.0001389,3]
[330643686,1719683445397,-1441.58,0.0001389,3]
[330643687,1719683445407,-106.30034394,0.0001389,3]
[330643688,1719683445424,-393.69965606,0.0001389,3]
[330643689,1719683445433,-500.0,0.0001389,3]
[330643690,1719683445443,-500.0,0.0001389,3]
[330643691,1719683445453,-500.0,0.0001389,3]
[330643692,1719683445463,-1255.55,0.0001389,3]
[330643693,1719683445473,-500.0,0.0001389,3]
[330643694,1719683445483,-500.0,0.0001389,3]
[330643695,1719683445492,-500.0,0.0001389,3]
[330643696,1719683445501,-671.79,0.0001389,3]
[330643697,1719683445511,-739.36,0.0001389,3]
[330643698,1719683445520,-500.0,0.0001389,3]
[330643699,1719683445530,-1511.3,0.0001389,3]
[330643700,1719683445539,-500.0,0.0001389,3]
[330643701,1719683445550,-500.0,0.0001389,3]
[330643702,1719683445560,-500.0,0.0001389,3]
[330643703,1719683445570,-500.0,0.0001389,3]
[330643704,1719683445584,-500.0,0.0001389,3]
[330643705,1719683445596,-500.0,0.0001389,3]
[330643706,1719683445606,-1591.23,0.0001389,3]
[330643707,1719683445615,-644.97,0.0001389,3]
[330643708,1719683445625,-500.0,0.0001389,3]
[330643709,1719683445634,-500.0,0.0001389,3]
[330643710,1719683445644,-500.0,0.0001389,3]
[330643711,1719683445653,-917.3,0.0001389,3]
[330643712,1719683445663,-500.0,0.0001389,3]
[330643713,1719683445673,-817.1,0.0001389,3]
[330643714,1719683445682,-500.0,0.0001389,3]
[330643715,1719683445691,-500.0,0.0001389,3]
[330643716,1719683445701,-542.68,0.0001389,3]